Workbook

Sheet Index
A1: Number | B1: Spreadsheet | C1: Magazine | D1: Title | E1: Folder | F1: File Name | G1: Hyperlink
A2: 1 | B2: =("Os_Os_00" & A2) -> Os_Os_001 | C2: XXX | D2: XXX | E2: =("C:\Essays\Geo_Dating\Rhenium\") -> C:\Essays\Geo_Dating\Rhenium\ | F2: =("Osmium_00" & A2 & ".pdf") -> Osmium_001.pdf | G2: =(E2 & F2) -> C:\Essays\Geo_Dating\Rhenium\Osmium_001.pdf | H2: =(A2) -> 1 | I2: =(D2 & ", " & C2) -> XXX, XXX
A3: 2 | B3: =("Os_Os_00" & A3) -> Os_Os_002 | C3: XXX | D3: XXX | E3: C:\Essays\Geo_Dating\Rhenium\ | F3: =("Osmium_00" & A3 & ".pdf") -> Osmium_002.pdf | G3: C:\Essays\Geo_Dating\Rhenium\Osmium_002.pdf | H3: 2 | I3: =(D3 & ", " & C3) -> XXX, XXX
A4: 3 | B4: Os_Os_003 | C4: XXX | D4: XXX | E4: C:\Essays\Geo_Dating\Rhenium\ | F4: Osmium_003.pdf | G4: C:\Essays\Geo_Dating\Rhenium\Osmium_003.pdf | H4: 3 | I4: XXX, XXX
A5: 4 | B5: Os_Os_004 | C5: XXX | D5: XXX | E5: C:\Essays\Geo_Dating\Rhenium\ | F5: Osmium_004.pdf | G5: C:\Essays\Geo_Dating\Rhenium\Osmium_004.pdf | H5: 4 | I5: XXX, XXX
A6: 5 | B6: Os_Os_005 | C6: XXX | D6: XXX | E6: C:\Essays\Geo_Dating\Rhenium\ | F6: Osmium_005.pdf | G6: C:\Essays\Geo_Dating\Rhenium\Osmium_005.pdf | H6: 5 | I6: XXX, XXX
A7: 6 | B7: Os_Os_006 | C7: XXX | D7: XXX | E7: =("C:\Essays\Geo_Dating\Rhenium\") -> C:\Essays\Geo_Dating\Rhenium\ | F7: Osmium_006.pdf | G7: C:\Essays\Geo_Dating\Rhenium\Osmium_006.pdf | H7: 6 | I7: XXX, XXX
A8: 7 | B8: Os_Os_007 | C8: XXX | D8: XXX | E8: =("C:\Essays\Geo_Dating\Rhenium\") -> C:\Essays\Geo_Dating\Rhenium\ | F8: Osmium_007.pdf | G8: C:\Essays\Geo_Dating\Rhenium\Osmium_007.pdf | H8: 7 | I8: XXX, XXX
A9: 8 | B9: Os_Os_008 | C9: XXX | D9: XXX | E9: C:\Essays\Geo_Dating\Rhenium\ | F9: Osmium_008.pdf | G9: C:\Essays\Geo_Dating\Rhenium\Osmium_008.pdf | H9: 8 | I9: XXX, XXX
A10: 9 | B10: Os_Os_009 | C10: XXX | D10: XXX | E10: C:\Essays\Geo_Dating\Rhenium\ | F10: Osmium_009.pdf | G10: C:\Essays\Geo_Dating\Rhenium\Osmium_009.pdf | H10: 9 | I10: XXX, XXX
A11: 10 | B11: =("Os_Os_0" & A11) -> Os_Os_010 | C11: XXX | D11: XXX | E11: C:\Essays\Geo_Dating\Rhenium\ | F11: =("Osmium_0" & A11 & ".pdf") -> Osmium_010.pdf | G11: C:\Essays\Geo_Dating\Rhenium\Osmium_010.pdf | H11: 10 | I11: XXX, XXX
A12: 11 | B12: =("Os_Os_0" & A12) -> Os_Os_011 | C12: XXX | D12: XXX | E12: C:\Essays\Geo_Dating\Rhenium\ | F12: =("Osmium_0" & A12 & ".pdf") -> Osmium_011.pdf | G12: C:\Essays\Geo_Dating\Rhenium\Osmium_011.pdf | H12: 11 | I12: XXX, XXX
A13: 12 | B13: Os_Os_012 | C13: XXX | D13: XXX | E13: C:\Essays\Geo_Dating\Rhenium\ | F13: Osmium_012.pdf | G13: C:\Essays\Geo_Dating\Rhenium\Osmium_012.pdf | H13: 12 | I13: XXX, XXX
A14: 13 | B14: Os_Os_013 | C14: XXX | D14: XXX | E14: C:\Essays\Geo_Dating\Rhenium\ | F14: Osmium_013.pdf | G14: C:\Essays\Geo_Dating\Rhenium\Osmium_013.pdf | H14: 13 | I14: XXX, XXX
A15: 14 | B15: Os_Os_014 | C15: XXX | D15: XXX | E15: C:\Essays\Geo_Dating\Rhenium\ | F15: Osmium_014.pdf | G15: C:\Essays\Geo_Dating\Rhenium\Osmium_014.pdf | H15: 14 | I15: XXX, XXX
A16: 15 | B16: Os_Os_015 | C16: XXX | D16: XXX | E16: C:\Essays\Geo_Dating\Rhenium\ | F16: Osmium_015.pdf | G16: C:\Essays\Geo_Dating\Rhenium\Osmium_015.pdf | H16: 15 | I16: XXX, XXX
A17: 16 | B17: Os_Os_016 | C17: XXX | D17: XXX | E17: C:\Essays\Geo_Dating\Rhenium\ | F17: Osmium_016.pdf | G17: C:\Essays\Geo_Dating\Rhenium\Osmium_016.pdf | H17: 16 | I17: XXX, XXX
A18: 17 | B18: Os_Os_017 | C18: XXX | D18: XXX | E18: C:\Essays\Geo_Dating\Rhenium\ | F18: Osmium_017.pdf | G18: C:\Essays\Geo_Dating\Rhenium\Osmium_017.pdf | H18: 17 | I18: XXX, XXX
A19: 18 | B19: Os_Os_018 | C19: XXX | D19: XXX | E19: C:\Essays\Geo_Dating\Rhenium\ | F19: Osmium_018.pdf | G19: C:\Essays\Geo_Dating\Rhenium\Osmium_018.pdf | H19: 18 | I19: XXX, XXX
A20: 19 | B20: Os_Os_019 | C20: XXX | D20: XXX | E20: C:\Essays\Geo_Dating\Rhenium\ | F20: Osmium_019.pdf | G20: C:\Essays\Geo_Dating\Rhenium\Osmium_019.pdf | H20: 19 | I20: XXX, XXX
A21: 20 | B21: Os_Os_020 | C21: XXX | D21: XXX | E21: C:\Essays\Geo_Dating\Rhenium\ | F21: Osmium_020.pdf | G21: C:\Essays\Geo_Dating\Rhenium\Osmium_020.pdf | H21: 20 | I21: XXX, XXX
A22: 21 | B22: Os_Os_021 | C22: XXX | D22: XXX | E22: C:\Essays\Geo_Dating\Rhenium\ | F22: Osmium_021.pdf | G22: C:\Essays\Geo_Dating\Rhenium\Osmium_021.pdf | H22: 21 | I22: XXX, XXX
A23: 22 | B23: Os_Os_022 | C23: XXX | D23: XXX | E23: C:\Essays\Geo_Dating\Rhenium\ | F23: Osmium_022.pdf | G23: C:\Essays\Geo_Dating\Rhenium\Osmium_022.pdf | H23: 22 | I23: XXX, XXX
A24: 23 | B24: Os_Os_023 | C24: XXX | D24: XXX | E24: C:\Essays\Geo_Dating\Rhenium\ | F24: Osmium_023.pdf | G24: C:\Essays\Geo_Dating\Rhenium\Osmium_023.pdf | H24: 23 | I24: XXX, XXX
A25: 24 | B25: Os_Os_024 | C25: XXX | D25: XXX | E25: C:\Essays\Geo_Dating\Rhenium\ | F25: Osmium_024.pdf | G25: C:\Essays\Geo_Dating\Rhenium\Osmium_024.pdf | H25: 24 | I25: XXX, XXX
A26: 25 | B26: Os_Os_025 | C26: XXX | D26: XXX | E26: C:\Essays\Geo_Dating\Rhenium\ | F26: Osmium_025.pdf | G26: C:\Essays\Geo_Dating\Rhenium\Osmium_025.pdf | H26: 25 | I26: XXX, XXX
A27: 26 | B27: Os_Os_026 | C27: XXX | D27: XXX | E27: C:\Essays\Geo_Dating\Rhenium\ | F27: Osmium_026.pdf | G27: C:\Essays\Geo_Dating\Rhenium\Osmium_026.pdf | H27: 26 | I27: XXX, XXX
A28: 27 | B28: Os_Os_027 | C28: XXX | D28: XXX | E28: C:\Essays\Geo_Dating\Rhenium\ | F28: Osmium_027.pdf | G28: C:\Essays\Geo_Dating\Rhenium\Osmium_027.pdf | H28: 27 | I28: XXX, XXX
A29: 28 | B29: Os_Os_028 | C29: XXX | D29: XXX | E29: C:\Essays\Geo_Dating\Rhenium\ | F29: Osmium_028.pdf | G29: C:\Essays\Geo_Dating\Rhenium\Osmium_028.pdf | H29: 28 | I29: XXX, XXX
A30: 29 | B30: Os_Os_029 | C30: XXX | D30: XXX | E30: C:\Essays\Geo_Dating\Rhenium\ | F30: Osmium_029.pdf | G30: C:\Essays\Geo_Dating\Rhenium\Osmium_029.pdf | H30: 29 | I30: XXX, XXX
A31: 30 | B31: Os_Os_030 | C31: XXX | D31: XXX | E31: C:\Essays\Geo_Dating\Rhenium\ | F31: Osmium_030.pdf | G31: C:\Essays\Geo_Dating\Rhenium\Osmium_030.pdf | H31: 30 | I31: XXX, XXX
A32: 31 | B32: Os_Os_031 | C32: XXX | D32: XXX | E32: C:\Essays\Geo_Dating\Rhenium\ | F32: Osmium_031.pdf | G32: C:\Essays\Geo_Dating\Rhenium\Osmium_031.pdf | H32: 31 | I32: XXX, XXX
A33: 32 | B33: Os_Os_032 | C33: XXX | D33: XXX | E33: C:\Essays\Geo_Dating\Rhenium\ | F33: Osmium_032.pdf | G33: C:\Essays\Geo_Dating\Rhenium\Osmium_032.pdf | H33: 32 | I33: XXX, XXX
A34: 33 | B34: Os_Os_033 | C34: XXX | D34: XXX | E34: C:\Essays\Geo_Dating\Rhenium\ | F34: Osmium_033.pdf | G34: C:\Essays\Geo_Dating\Rhenium\Osmium_033.pdf | H34: 33 | I34: XXX, XXX
A35: 34 | B35: Os_Os_034 | C35: XXX | D35: XXX | E35: C:\Essays\Geo_Dating\Rhenium\ | F35: Osmium_034.pdf | G35: C:\Essays\Geo_Dating\Rhenium\Osmium_034.pdf | H35: 34 | I35: XXX, XXX
A36: 35 | B36: Os_Os_035 | C36: XXX | D36: XXX | E36: C:\Essays\Geo_Dating\Rhenium\ | F36: Osmium_035.pdf | G36: C:\Essays\Geo_Dating\Rhenium\Osmium_035.pdf | H36: 35 | I36: XXX, XXX
A37: 36 | B37: Os_Os_036 | C37: XXX | D37: XXX | E37: C:\Essays\Geo_Dating\Rhenium\ | F37: Osmium_036.pdf | G37: C:\Essays\Geo_Dating\Rhenium\Osmium_036.pdf | H37: 36 | I37: XXX, XXX
A38: 37 | B38: Os_Os_037 | C38: XXX | D38: XXX | E38: C:\Essays\Geo_Dating\Rhenium\ | F38: Osmium_037.pdf | G38: C:\Essays\Geo_Dating\Rhenium\Osmium_037.pdf | H38: 37 | I38: XXX, XXX
A39: 38 | B39: Os_Os_038 | C39: XXX | D39: XXX | E39: C:\Essays\Geo_Dating\Rhenium\ | F39: Osmium_038.pdf | G39: C:\Essays\Geo_Dating\Rhenium\Osmium_038.pdf | H39: 38 | I39: XXX, XXX
A40: 39 | B40: Os_Os_039 | C40: XXX | D40: XXX | E40: C:\Essays\Geo_Dating\Rhenium\ | F40: Osmium_039.pdf | G40: C:\Essays\Geo_Dating\Rhenium\Osmium_039.pdf | H40: 39 | I40: XXX, XXX
A41: 40 | B41: Os_Os_040 | C41: XXX | D41: XXX | E41: C:\Essays\Geo_Dating\Rhenium\ | F41: Osmium_040.pdf | G41: C:\Essays\Geo_Dating\Rhenium\Osmium_040.pdf | H41: =(A41-4) -> 36 | I41: XXX, XXX
A42: 41 | B42: Os_Os_041 | C42: XXX | D42: XXX | E42: C:\Essays\Geo_Dating\Rhenium\ | F42: Osmium_041.pdf | G42: C:\Essays\Geo_Dating\Rhenium\Osmium_041.pdf | H42: 37 | I42: XXX, XXX
A43: 42 | B43: Os_Os_042 | C43: XXX | D43: XXX | E43: C:\Essays\Geo_Dating\Rhenium\ | F43: Osmium_042.pdf | G43: C:\Essays\Geo_Dating\Rhenium\Osmium_042.pdf | H43: 38 | I43: XXX, XXX
A44: 43 | B44: Os_Os_043 | C44: XXX | D44: XXX | E44: C:\Essays\Geo_Dating\Rhenium\ | F44: Osmium_043.pdf | G44: C:\Essays\Geo_Dating\Rhenium\Osmium_043.pdf | H44: 39 | I44: XXX, XXX
A45: 44 | B45: Os_Os_044 | C45: XXX | D45: XXX | E45: C:\Essays\Geo_Dating\Rhenium\ | F45: Osmium_044.pdf | G45: C:\Essays\Geo_Dating\Rhenium\Osmium_044.pdf | H45: 40 | I45: XXX, XXX
A46: 45 | B46: Os_Os_045 | C46: XXX | D46: XXX | E46: C:\Essays\Geo_Dating\Rhenium\ | F46: Osmium_045.pdf | G46: C:\Essays\Geo_Dating\Rhenium\Osmium_045.pdf | H46: 41 | I46: XXX, XXX
A47: 46 | B47: Os_Os_046 | C47: XXX | D47: XXX | E47: C:\Essays\Geo_Dating\Rhenium\ | F47: Osmium_046.pdf | G47: C:\Essays\Geo_Dating\Rhenium\Osmium_046.pdf | H47: 42 | I47: XXX, XXX
A48: 47 | B48: Os_Os_047 | C48: XXX | D48: XXX | E48: C:\Essays\Geo_Dating\Rhenium\ | F48: Osmium_047.pdf | G48: C:\Essays\Geo_Dating\Rhenium\Osmium_047.pdf | H48: 43 | I48: XXX, XXX
A49: 48 | B49: Os_Os_048 | C49: XXX | D49: XXX | E49: C:\Essays\Geo_Dating\Rhenium\ | F49: Osmium_048.pdf | G49: C:\Essays\Geo_Dating\Rhenium\Osmium_048.pdf | H49: 44 | I49: XXX, XXX
A50: 49 | B50: Os_Os_049 | C50: XXX | D50: XXX | E50: C:\Essays\Geo_Dating\Rhenium\ | F50: Osmium_049.pdf | G50: C:\Essays\Geo_Dating\Rhenium\Osmium_049.pdf | H50: 45 | I50: XXX, XXX
A51: 50 | B51: Os_Os_050 | C51: XXX | D51: XXX | E51: C:\Essays\Geo_Dating\Rhenium\ | F51: Osmium_050.pdf | G51: C:\Essays\Geo_Dating\Rhenium\Osmium_050.pdf | H51: 46 | I51: XXX, XXX

Sheet Os_Os_01
A1: Osmium | G1: Rhenium_007.pdf
A2: Osmium | B2: Today | C2: The | D2: Step | E2: Age | F2: Age | G2: Age | H2: Model Age | I2: Model Age | J2: Model Age
A3: Dating | B3: 187Os/186Os | C3: Ratio | D3: Two | E3: Years | F3: Million Years | G3: Billion Years | H3: Million Years | I3: % Difference | J3: Difference
B4: 0.918 | C4: =(1.04-B4) -> 0.122 | D4: =(C4/0.050768) -> 2.40308856 | E4: =(D4 * 1000000000) -> 2403088560 | F4: =(E4/1000000) -> 2403.08856 | G4: =(F4/1000) -> 2.40308856
B5: 0.927 | C5: =(1.04-B5) -> 0.113 | D5: =(C5/0.050768) -> 2.225811535 | E5: =(D5 * 1000000000) -> 2225811535 | F5: =(E5/1000000) -> 2225.811535 | G5: =(F5/1000) -> 2.225811535
B6: 1.038 | C6: 0.002 | D6: 0.03939489442 | E6: 39394894.42 | F6: 39.39489442 | G6: 0.03939489442 | L6: 186Os/188Os | M6: 187Os/188Os | N6: 187Os/186Os
B7: 0.966 | C7: 0.074 | D7: 1.457611094 | E7: 1457611094 | F7: 1457.611094 | G7: 1.457611094 | K7: PGM79-113 | L7: 0.119858 | M7: 1.05788 | N7: =(M7/L7) -> 8.826110898
B8: 0.976 | C8: 0.064 | D8: 1.260636621 | E8: 1260636621 | F8: 1260.636621 | G8: 1.260636621 | K8: PGM79-113 | L8: 0.119848 | M8: 1.05963 | N8: =(M8/L8) -> 8.841449169
B9: 1.07 | C9: =(1.04-B9) -> -0.03 | D9: =(C9/0.050768) -> -0.5909234163 | E9: =(D9 * 1000000000) -> -590923416.3 | F9: =(E9/1000000) -> -590.9234163 | G9: =(F9/1000) -> -0.5909234163 | K9: PGM79-113 | L9: 0.119854 | M9: 1.05457 | N9: 8.798788526
B10: 1.051 | C10: -0.011 | D10: -0.2166719193 | E10: -216671919.3 | F10: -216.6719193 | G10: -0.2166719193 | K10: PGM79-113 | L10: 0.119866 | M10: 1.05899 | N10: 8.834782173
B11: 0.905 | C11: 0.135 | D11: 2.659155373 | E11: 2659155373 | F11: 2659.155373 | G11: 2.659155373 | K11: PGM79-113 | L11: 0.119859 | M11: 1.05885 | N11: 8.834130103
B12: 1.002 | C12: 0.038 | D12: 0.748502994 | E12: 748502994 | F12: 748.502994 | G12: 0.748502994 | K12: PGM79-113 | L12: 0.119844 | M12: 1.05536 | N12: 8.806114616
B13: 0.978 | C13: 0.062 | D13: 1.221241727 | E13: 1221241727 | F13: 1221.241727 | G13: 1.221241727
B14: 1.003 | C14: 0.037 | D14: 0.7288055468 | E14: 728805546.8 | F14: 728.8055468 | G14: 0.7288055468 | K14: McCreedy
B15: 0.956 | C15: 0.084 | D15: 1.654585566 | E15: 1654585566 | F15: 1654.585566 | G15: 1.654585566 | K15: F41874 | L15: 0.119856 | M15: 1.20311 | N15: 10.03796222
B16: 1.208 | C16: -0.168 | D16: -3.309171131 | E16: -3309171131 | F16: -3309.171131 | G16: -3.309171131 | K16: F41874 | L16: 0.119872 | M16: 1.20122 | N16: 10.02085558
B17: 0.93 | C17: 0.11 | D17: 2.166719193 | E17: 2166719193 | F17: 2166.719193 | G17: 2.166719193 | K17: F41874 | L17: 0.119871 | M17: 1.221 | N17: 10.1859499
B18: 0 | C18: 1.04 | D18: 20.4853451 | E18: 2.04853451e+10
E19: Average | F19: =AVERAGE(F4:F18) -> 889.1990455 | G19: =AVERAGE(G4:G18) -> 0.8891990455 | K19: Strathcona
E20: Maximum | F20: =MAX(F4:F19) -> 2659.155373 | G20: =MAX(G4:G19) -> 2.659155373 | K20: PGM79-138 | L20: 0.119825 | M20: 1.96159 | N20: 16.37045692
E21: Minimum | F21: =MIN(F4:F20) -> -3309.171131 | G21: =MIN(G4:G20) -> -3.309171131 | K21: PGM79-138 | L21: 0.119825 | M21: 1.96171 | N21: 16.37145838
E22: Difference | F22: =(F20+ABS(F21)) -> 5968.326505 | G22: =(G20+ABS(G21)) -> 5.968326505 | K22: PGM79-138 | L22: 0.119830 | M22: 1.95869 | N22: 16.34557289
K23: PGM79-139 | L23: 0.119828 | M23: 2.04751 | N23: 17.08707481
K24: PGM79-139 | L24: 0.119824 | M24: 2.04641 | N24: 17.07846508
K25: PGM79-139 | L25: 0.119830 | M25: 2.04554 | N25: 17.07034966
